Cogmind - Beta 15 *** ADVENTURER MODE // 2025.07.05 @ 15:04:56 Player: orion Result: Destroyed by G-34 Mercenary with Small Laser Performance ------------- Evolutions (1) 500 Regions Visited (2) 400 Robots Destroyed (24) 120 Value Destroyed (518) 518 Prototype IDs (0) 0 Alien Tech Used (0) 0 Bonus (0) 0 TOTAL SCORE: 1538 Bonus ------- None Cogmind --------- Core Integrity 0/400 Matter 173/300 Energy 100/100 System Corruption 0% Temperature Cool (12) Movement Core (50) Location -9/Materials Parts ------- > --- POWER (1) -------- (None) > --- PROPULSION (2) --- (None) > --- UTILITY (3) ------ (None) > --- WEAPON (3) ------- (None) > --- INVENTORY (5) ---- Ion Engine Heat Sink Peak State ------------ > --- POWER ------------ Light Nuclear Core > --- PROPULSION ------- Light Treads Light Treads > --- UTILITY ---------- Improved Heat Sink Structural Scanner > --- WEAPON ----------- EM Pulse Gun Small Laser > --- INVENTORY -------- Ion Engine Heat Sink Assault Rifle [Rating: 11] Favorites ----------- Power Light Nuclear Core Engine Ion Engine Power Core Light Nuclear Core Propulsion Light Treads Treads Light Treads Utility Structural Scanner Device Structural Scanner Weapon Small Laser Energy Gun Small Laser Ballistic Gun Assault Rifle Launcher Grenade Launcher Build | -11 -10 -9 ------- Run | Yrd Mat Mat Slots Evolved 2 | . . 2 Power . | . . . Propulsion . | . . . Utility 1 | . . 1 Weapon 1 | . . 1 Parts Attached 12 | 5 5 2 Power 2 | 1 1 . Engine 1 | 1 . . Core 1 | . 1 . Reactor . | . . . Propulsion 2 | 2 . . Treads 2 | 2 . . Leg . | . . . Wheel . | . . . Hover . | . . . Flight . | . . . Utility 3 | . 3 . Device 3 | . 3 . Storage . | . . . Processor . | . . . Hackware . | . . . Protection . | . . . Artifact . | . . . Weapon 5 | 2 1 2 Energy Gun 2 | 2 . . Energy Cannon . | . . . Ballistic Gun 2 | . . 2 Ballistic Cannon . | . . . Launcher 1 | . 1 . Special Weapon . | . . . Impact Weapon . | . . . Slashing Weapon . | . . . Piercing Weapon . | . . . Special Melee Weapon . | . . . Unidentified Prototypes . | . . . Parts Lost 10 | . . 10 Power 1 | . . 1 Propulsion 2 | . . 2 Utility 2 | . . 2 Weapon 5 | . . 5 Highest Loss Streak 9 | . . 9 To Critical Strikes . | . . . Average Backups 3 | 1 3 4 Power . | . . 1 Propulsion . | . . . Utility . | . . 1 Weapon 2 | 1 1 2 Tool/Special . | . . . Unused Backups . | . . . Power . | . . . Propulsion . | . . . Utility . | . . . Weapon . | . . . Tool/Special . | . . . Average Slot Usage (%) 82 | . 94 65 Engine 2 | . 4 . Core 9 | . 9 9 Treads 22 | . 28 15 Device 21 | . 22 20 Energy Gun 16 | . 21 9 Launcher 7 | . 6 9 Peak Build Rating 11 | 5 11 11 Average Rating 8 | 3 9 9 On Entrance 5 | . 5 11 Naked Turns 2 | . . 2 Heaviest Build 11 | 8 11 11 Greatest Support 40 | 40 40 40 Greatest Overweight (x) . | . . . Average Overweight (x) . | . . . Largest Inventory Capacity 5 | 5 5 5 Average Capacity 5 | 5 5 5 Most Carried 5 | 4 5 5 Average Carried 3 | 1 3 4 Final Capacity 5 | 5 5 5 Final Carried 5 | 1 5 2 Class Distribution -------------------- 100% | Mutant Dominant Class ---------------- Mutant | -10/Materials Mutant | -9/Materials Resources | -11 -10 -9 ----------- Run | Yrd Mat Mat Matter Collected 341 | 232 64 45 Remotely . | . . . Salvage Created 595 | . 349 246 Parts 45 | . 22 23 Haulers Intercepted 1 | . . 1 Recyclers Shooed 1 | . . 1 Parts Field Recycled . | . . . Retrieved Matter . | . . . Parts Self-Destructed . | . . . Prevented . | . . . Kills | -11 -10 -9 ------- Run | Yrd Mat Mat Combat Hostiles Destroyed 21 | . 10 11 Guns 11 | . 8 3 AOE 10 | . 2 8 Classes Destroyed 6 | . 3 3 Worker 1 | . 1 . Hauler 1 | . . 1 Recycler 1 | . . 1 Swarmer 11 | . 3 8 Grunt 7 | . 7 . Sentry 3 | . . 3 Best Kill Streak 7 | . 7 5 Combat Bots Only 7 | . 7 4 Max Kills in Single Turn 2 | . 2 2 Gunslinging . | . . . Exploded 2 | . 2 2 Melee . | . . . Uniques/NPCs Destroyed . | . . . Combat | -11 -10 -9 -------- Run | Yrd Mat Mat Hostile Shots Fired 181 | . 23 158 Missed 47 | . 3 44 Hits 134 | . 20 114 Projectile 134 | . 20 114 Critical Strikes 5 | . . 5 Damage Taken 1196 | . 172 1024 Core 423 | . 20 403 Absorbed by Shields . | . . . Ignored by Resistances 368 | . 51 317 Core Remaining (%) 96 | 100 92 . Volleys Fired 45 | . 19 26 Largest 3 | . 2 3 Hottest 80 | . 80 80 Shots Fired 87 | . 38 49 Gun 71 | . 35 36 Cannon . | . . . Launcher 16 | . 3 13 Special . | . . . Kinetic 14 | . . 14 Thermal 40 | . 19 21 Explosive 16 | . 3 13 Electromagnetic 17 | . 16 1 Robot Hit Streak 34 | . 31 34 Robot Miss Streak 2 | . . 2 Penetration Max . | . . . Secondary Targets 1 | . . 1 Max Gunslinging Chain 1 | . . 1 Shots Hit Robots 66 | . 31 35 Core Hits 35 | . 17 18 Critical Kills . | . . . Critical Parts Destroyed . | . . . Critical Strikes . | . . . Melee Attacks . | . . . Impact . | . . . Slashing . | . . . Piercing . | . . . Sneak Attacks . | . . . Combat Hostiles . | . . . Follow-up Attacks . | . . . Damage Inflicted 1420 | . 521 899 Guns 662 | . 357 305 Cannons . | . . . Explosions 758 | . 164 594 Melee . | . . . Ramming . | . . . Kinetic 138 | . . 138 Thermal 320 | . 153 167 Explosive 758 | . 164 594 Electromagnetic 204 | . 204 . Impact . | . . . Slashing . | . . . Piercing . | . . . Highest Corruption . | . . . Average Corruption . | . . . Corruption Purged . | . . . Corruption Blocked . | . . . Overload Shots . | . . . Overflow Damage 48 | . . 48 Projectiles . | . . . Explosions 48 | . . 48 Melee . | . . . Knockbacks . | . . . Impact . | . . . Kinetic . | . . . Secondary . | . . . Self-Inflicted Damage 24 | . . 24 Shots 3 | . . 3 Rammed . | . . . Targets Rammed . | . . . Kicked . | . . . Crushed . | . . . Highest Temperature 36 | . 7 36 Average Temperature 8 | . 3 12 Received Heat Transfer 702 | . 102 600 Siege Activations . | . . . Martial Activations . | . . . Shielding Activations . | . . . Robots Disrupted . | . . . Combat Hostiles . | . . . Robots Corrupted . | . . . Combat Hostiles . | . . . Parts Fried . | . . . Impact Corruptions . | . . . Robots Melted . | . . . Combat Hostiles . | . . . Parts Melted 1 | . 1 . Heat Transferred 725 | . 350 375 Parts Sabotaged . | . . . Parts Stolen . | . . . Parts Stripped . | . . . Power Chain Reactions . | . . . Alert | -11 -10 -9 ------- Run | Yrd Mat Mat Maximum Alert Level 1 | . . 1 Low Security (%) 92 | 100 100 80 Level 1 7 | . . 19 Level 2 . | . . . Level 3 . | . . . Level 4 . | . . . Level 5 . | . . . High Security . | . . . Max Security . | . . . Peak Influence 245 | . 155 245 Initial 48 | . . 48 Average 84 | . 72 124 Influence Increases 623 | . 276 347 Destroy 0b10 Robot/C 420 | . 200 220 Destroy 0b10 Robot/NC 15 | . 5 10 Destroy Leader 92 | . 40 52 Destroy Structure 81 | . 16 65 Lose Combat Pursuer 15 | . 15 . Influence Decreases 458 | . 140 318 Entered New Map 88 | . . 88 Time Decay 270 | . 140 130 Lost Part 100 | . . 100 Squads Dispatched 2 | . 1 1 Investigation 1 | . 1 . Extermination . | . . . Reinforcement 1 | . . 1 Assault . | . . . Garrison . | . . . Intercept . | . . . Searches Triggered . | . . . Construction Impeded . | . . . Haulers Reinforced . | . . . Active Scanning Responses . | . . . Cargo Convoy Interrupts . | . . . Stealth | -11 -10 -9 --------- Run | Yrd Mat Mat Distress Signals 2 | . 1 1 Communications Jammed . | . . . Distress Signals . | . . . Times Spotted 29 | . 11 18 Peak Tracking Total 6 | . 4 6 Tactical Retreats 1 | . 1 . Traps | -11 -10 -9 ------- Run | Yrd Mat Mat Traps Triggered 1 | . 1 . Indirectly . | . . . Trap Hack Attempts . | . . . Triggered . | . . . Disarmed . | . . . Reprogrammed . | . . . Reused . | . . . Traps Extracted . | . . . Installed . | . . . Triggered . | . . . Machines | -11 -10 -9 ---------- Run | Yrd Mat Mat Machines Disabled . | . . . Max in Single Turn . | . . . Machines Repaired . | . . . Machines Dismantled . | . . . Machines Sabotaged . | . . . Overloaded Fab Kills . | . . . Hacking | -11 -10 -9 --------- Run | Yrd Mat Mat Machines Accessed . | . . . Terminals . | . . . Fabricators . | . . . Repair Stations . | . . . Recycling Units . | . . . Scanalyzers . | . . . Garrison Access . | . . . Total Hacks . | . . . Successful . | . . . Failed . | . . . Catastrophic . | . . . Database Lockouts . | . . . Manual . | . . . Terminals . | . . . Fabricators . | . . . Repair Stations . | . . . Recycling Units . | . . . Scanalyzers . | . . . Garrison Access . | . . . Terminal Hacks . | . . . Fabricator Hacks . | . . . Repair Station Hacks . | . . . Recycling Unit Hacks . | . . . Scanalyzer . | . . . Garrison Access Hacks . | . . . Unauthorized Hacks . | . . . Terminals . | . . . Fabricators . | . . . Repair Stations . | . . . Recycling Units . | . . . Scanalyzers . | . . . Garrison Access . | . . . Data Cores Recovered . | . . . Used . | . . . Hacking Detections . | . . . Full Trace Events . | . . . Feedback Events . | . . . Feedback Blocked . | . . . Robot Schematics Acquired . | . . . Robots Built . | . . . Authchips . | . . . Time . | . . . Total Robot Build Rating . | . . . Part Schematics Acquired . | . . . Parts Built . | . . . Authchips . | . . . Time . | . . . Total Part Build Rating . | . . . Parts Repaired . | . . . Time . | . . . Parts Recycled . | . . . Recycled Matter . | . . . Retrieved Matter . | . . . Retrieved Components . | . . . Parts Scanalyzed . | . . . Part Schematics Acquired . | . . . Parts Damaged . | . . . Bothacking | -11 -10 -9 ------------ Run | Yrd Mat Mat Used RIF Installer . | . . . Robots Hacked . | . . . Non-combat . | . . . Combat . | . . . Robot Hacks Applied . | . . . Relay Couplers Released . | . . . Fabnet Peak Effective % . | . . . Robots Rewired . | . . . Allies Hacked . | . . . Hacks Repelled . | . . . Allies | -11 -10 -9 -------- Run | Yrd Mat Mat Total Allies . | . . . Largest Group . | . . . Highest-Rated Group . | . . . Highest-Rated Ally . | . . . Total Orders . | . . . Ally Attacks . | . . . Total Damage . | . . . Kills . | . . . Allies Corrupted . | . . . Allies Melted . | . . . Intel | -11 -10 -9 ------- Run | Yrd Mat Mat Active Infowar (turns) 607 | . 331 276 Structural 607 | . 331 276 Robot Analysis Total . | . . . Derelict Logs Recovered . | . . . Drone Launches . | . . . Drone Recoveries . | . . . Exploration | -11 -10 -9 ------------- Run | Yrd Mat Mat Turns Passed 749 | 74 397 278 Spaces Moved 367 | 50 201 116 Core 14 | 14 . . Treads 353 | 36 201 116 Legs . | . . . Wheels . | . . . Hover . | . . . Flight . | . . . Fastest Speed 50 | 50 160 160 Average Speed 155 | 129 160 160 Slowest Speed 160 | 160 160 160 Overloaded Moves . | . . . Propulsion Burnouts . | . . . Robots Hopped . | . . . Potential Cave-ins . | . . . Cave-ins Triggered . | . . . Exploration Rate (%) 21 | 4 43 18 Regions Visited 2 Branch Regions . Pre-discovered Areas . | . . . Known Exits Taken . | . . . Unknown Exits Taken 2 | 1 1 . Scrap Searched . | . . . Spaces Dug . | . . . Terrain Destroyed 107 | . 16 91 Melee . | . . . Projectile . | . . . AOE 107 | . 16 91 Terrain Rammed . | . . . Walls Destroyed . | . . . Machines Disabled . | . . . Actions | -11 -10 -9 --------- Run | Yrd Mat Mat Total 460 | 60 237 163 Wait 25 | . 7 18 Move 365 | 49 200 116 Hop . | . . . Pick Up 12 | 6 6 . Fast Attach . | . . . Attach 10 | 5 2 3 Detach . | . . . Swap 3 | . 3 . Drop . | . . . Fire 45 | . 19 26 Melee . | . . . Ram . | . . . Kick . | . . . Crush . | . . . Escape Stasis . | . . . Rewire . | . . . Trap . | . . . Miscellaneous . | . . . Route ------- -11/Scrapyard -10/Materials (discovered 2 exits: [*Mat] / [*Min]) -9/Materials History --------- Turn | Location | Event 9 | -11/Scrapyard | Discovered new exit (range 15) 75 | -11/Scrapyard | Entered Materials 259 | -10/Materials | Destroyed 7 combat bots 297 | -10/Materials | Discovered new exit (range 14) 315 | -10/Materials | Build established: Mutant 431 | -10/Materials | Discovered new exit (range 3) 472 | -10/Materials | Entered another Materials area 472 | -9/Materials | Evolved 2 slots: Utility x1, Weapon x1 738 | -9/Materials | Core integrity fell below 50% 746 | -9/Materials | Core integrity fell below 20% 750 | -9/Materials | Destroyed by G-34 Mercenary with Small Laser Last Messages --------------- Grenade Launcher destroyed. U-05 Engineer lays Concrete. Lgt. Treads destroyed. U-05 Engineer lays Concrete. U-05 Engineer builds a Wall. The unstable cave ceiling collapses. Imp. Heat Sink destroyed. S-10 Pest destroyed. Switching to secondary target: G-34 Mercenary. Sml. Laser destroyed. U-05 Engineer lays Concrete. Critical hit (Burn: +37). Lgt. Assault Rifle destroyed. Assault Rifle destroyed. Critical hit (Burn: +37). U-05 Engineer lays Concrete. Critical hit (Burn: +37). U-05 Engineer lays Concrete. Structural Scanner destroyed. U-05 Engineer lays Concrete. Map ----- +----------------------------------------------------+ | ???????????## """"" ##????? # | | ???????????## """"" ##????? | | ???????????## """ ##????? | | ???????????## ???? ##???????######### # | | ???????????####????#####???????######### | | ???????????####????#####?????????????### # | | ?????????????????##########??????????## | | ?????????????????##########??????????### | | ????????????????? # ##???????###### | | ????????????????? # """ ##????############ | | ????????????????? # """ ########### # | | ????????????????? # """ ######## "" + | | ????????????????? # # * ""S # | | ????????????? # ! # ! # | | ?????????????###+####+#### ! [ # | | ?????????????## ^ ^ # | | ?????????????## ^ + ## | | ?????????????## "T"^ # ## # # | | ?????????????## ^ # ## | | ?????????????## ^ # ## | | ?????????????## ^ ################# # | | ?????????????## ! ^ # ############### | | ?????????????## g ##########????### | | ?????????????## g u ????? | | ?????????????## gg[[[ #########???????? | | ?????????????## @=g= ########???????? | | ?????????????########## # ##?????????????? | | ?????????????######## # ##?????????????? | | ???????????????????#### ##?????????????? | | ???????????????????#### ####?????????????? | | ???????????????????? # ####?????????????? | | ????????????????????? #%= ##???????????????? | | ????????????????????? #= ##???????????????? | | ????????????????????? #%* ##???????????????? | | ????????????????????? +!= ###??????????????? | | ????????????????????? !!* ##??????????????? | | ????????????????????? %!! ##??????????????? | | ????????????????????? !% ??????????????? | | ?????????????????? !! ??????????????? | | ??????????????????#####% ?????????????? | | ?????????????????? * ????????????? | | ????????????????????? + ???????????? | | ???????????????????? ==! # ??????????? | | ???????????????????? =!! # ?????????? | | ???????????????????? =! # ??????????? | | ???????????????????? ######???????????? | | ???????????????????? ######???????????? | | ????????????????????? ##???????????????? | | ???????????????????????????????????????????? | | ???????????????????????????????????????????? | +----------------------------------------------------+ Best States ------------- Heat Dissipation 42 Energy Generation 14 Energy Capacity 250 Matter Stores 300 Matter Capacity 300 Sight Range 16 Terrain Scan Density 10 Resistance: KI 20 Resistance: TH 20 Resistance: EX 20 Resistance: EM 20 Resistance: I 20 Resistance: S 20 Resistance: P 20 Evasion (%) 50 Recoil Reduction 2 Offensive Hacking 10 Item Schematics ----------------- None Robot Schematics ------------------ None Fabricated ------------ Nothing Repaired ---------- Nothing Alien Tech Used ----------------- None Achievements -------------- None Challenges ------------ None Game ------ Seed FieldTerrainSabre Manual? 0 Play Time 00:15:36 Cumulative 2.2 hours Start 2025.07.05 @ 14:45:25 End 2025.07.05 @ 15:04:56 Sessions 1 Manual Loads 0 Difficulty Adventurer Special Mode None Game No. 4 Rogue 0 Adventurer 4 Explorer 0 Win Type - Total 0 Types 0/0/0/0/0/0/0/0/0/0 Lore% 0 Gallery% 3 Achievement% 4 Wizard Run 0 Options --------- Layout 1 ASCII 0 Keyboard 0 Movement Mouse Keybinds 0 Fullscreen 1 Font 18/X11 Map View 25x20 Zoom Use 73% Tactical HUD 0 Map Filters NONE Filters NONE Steam 1 RUN: bafd81a8-21c6-4e0d-a4aa-943ff637044a